lending/lending_fUSD_20240504
["ID","MTS","AMOUNT","RATE_DAILY","PERIOD"]
[325396391,1714817431836,-152.84,0.00012153,2]
[325396392,1714817431846,-152.84,0.00012189,2]
[325396393,1714817431855,-152.84,0.00012226,2]
[325396394,1714817431864,-152.84,0.00012262,2]
[325396395,1714817431873,-152.84,0.00012299,2]
[325396396,1714817431882,-152.84,0.00012336,2]
[325396397,1714817431891,-152.84,0.00012372,2]
[325396398,1714817431901,-152.84,0.00012409,2]
[325396399,1714817431910,-152.84,0.00012445,2]
[325396400,1714817431919,-152.84,0.00012482,2]
[325396401,1714817431928,-152.84,0.00012518,2]
[325396402,1714817431938,-152.84,0.00012555,2]
[325396403,1714817431947,-3498.38014246,0.00012678,2]
[325396404,1714817431956,-308.43595788,0.00012862,2]
[325396405,1714817431986,-1252.20578596,0.00012862,2]
[325396406,1714817431995,-965.88462889,0.0001287,2]
[325396407,1714817432005,-3000.0,0.0001287,2]
[325396408,1714817432014,-200.0,0.00012895,2]
[325396409,1714817432023,-500.0,0.00012895,2]
[325396410,1714817432032,-200.0,0.00012896,2]
[325396411,1714817432041,-1000.0,0.00012896,2]
[325396412,1714817432050,-500.0,0.00012896,2]
[325396413,1714817432060,-789.75703028,0.00012899,2]
[325396414,1714817432069,-2008.14132169,0.000129,2]
[325396415,1714817432081,-462.7919408,0.000129,2]
[325396416,1714817432092,-312.1224873,0.000129,2]
[325396417,1714817432103,-2952.77,0.000129,2]
[325396418,1714817432114,-668.1020005,0.000129,2]
[325396421,1714817432234,-3101.80648972,0.000129,2]
[325396427,1714817437702,-5762.85565999,0.000129,2]
[325396428,1714817437712,-10000.0,0.000129,2]
[325396429,1714817437721,-8899.71571654,0.000129,2]
[325396430,1714817437731,-172.51420179,0.000129,2]
[325396431,1714817437740,-1749.89117942,0.000129,2]
[325396432,1714817437752,-679.33328146,0.000129,2]
[325396433,1714817437761,-329.87442224,0.000129,2]
[325396434,1714817437771,-331.18004594,0.000129,2]
[325396435,1714817437780,-1000.0,0.00012928,2]
[325396436,1714817437790,-289.91,0.00012934,2]
[325396437,1714817437799,-445.0945958,0.00012989,2]
[325396438,1714817437808,-1731.7347536,0.00012989,2]
[325396439,1714817437818,-308.2402182,0.00012989,2]
[325396440,1714817437827,-406.8106409,0.00012989,2]
[325396441,1714817437835,-574.5487062,0.00012991,2]
[325396442,1714817437845,-2235.4033762,0.00012991,2]
[325396443,1714817437854,-397.8907411,0.00012991,2]
[325396444,1714817437863,-561.7830975,0.00012991,2]
[325396445,1714817437873,-3415.0326858,0.00012998,2]
[325396446,1714817437882,-155.0,0.00012998,2]
[325396447,1714817437892,-370.19548805,0.00012998,2]
[325396448,1714817437901,-155.0,0.00012998,2]
[325396449,1714817437910,-155.0,0.00012998,2]
[325396450,1714817437919,-267.4272769,0.00012998,2]
[325396451,1714817437928,-4127.4758581,0.00012998,2]
[325396452,1714817437941,-3880.7261095,0.00012998,2]
[325396453,1714817437951,-487.58768954,0.00012998,2]
[325396454,1714817437960,-155.0,0.00012998,2]
[325396455,1714817437969,-329.28740096,0.00012999,2]
[325396456,1714817438017,-4934.18643685,0.00012999,2]
[325396457,1714817438026,-150.01,0.00012999,2]
[325396458,1714817438036,-503.0,0.00013,2]
[325396459,1714817438045,-75036.02514543,0.00013,2]
[325396460,1714817439807,-774.040005,0.00013,2]
[325396461,1714817439819,-303.27304,0.00013,2]
[325396462,1714817439878,-329.17,0.00013,2]
[325396463,1714817440192,-1641.30252,0.00013,2]
[325396464,1714817440207,-35284.18522708,0.00013,2]
[325396482,1714817442868,-451.45712628,0.00013,2]
[325396485,1714817442880,-1439.08969512,0.00013,2]
[325396489,1714817442910,-926.12701985,0.00013,2]
[325396491,1714817442921,-1732.275,0.00013,2]
[325396495,1714817442948,-5893.04789687,0.00013,2]
[325396496,1714817443039,-1892.56313245,0.00013,2]
[325396497,1714817443051,-44793.53153538,0.00013,2]
[325396498,1714817443063,-85490.41416995,0.00013,2]
[325396499,1714817443074,-438275.66176176,0.00013,2]
[325396500,1714817443173,-508.1055248,0.00013,2]
[325396501,1714817443185,-463.3999995,0.00013,2]
[325396506,1714817445869,-644.99959629,0.00012998,2]
[325396507,1714817445879,-9856.62045461,0.00012999,2]
[325396508,1714817445888,-301.21416419,0.00012999,2]
[325396509,1714817445897,-8239.13235747,0.00013,2]
[325396510,1714817445909,-1844.70405548,0.00013,2]
[325396511,1714817445932,-790.12443875,0.00013,2]
[325396512,1714817446046,-629.27928532,0.00012989,2]
[325396513,1714817446058,-431.96925012,0.00012989,2]
[325396514,1714817446069,-344.43040636,0.00012989,2]
[325396515,1714817446079,-24651.19986164,0.00013,2]
[325396516,1714817446090,-528.93631362,0.00013,2]
[325396517,1714817446102,-686.71422139,0.00013,2]
[325396518,1714817446114,-1006.8,0.00013,2]
[325396519,1714817460595,484.95828341,0.00011698,2]
[325396521,1714817466711,11017.40912596,0.00015,5]
[325396536,1714817925432,156.23,0.00025,120]
[325396597,1714818423307,150.0,0.00010993,2]
[325396623,1714818632199,-150.0,0.00011939,2]
[325396624,1714818632208,-216.99723947,0.0001194,2]
[325396625,1714818632218,-5264.73132234,0.0001194,2]
[325396626,1714818632228,-8355.86248075,0.00011941,2]
[325396627,1714818632238,-1500.0,0.00011945,2]
[325396628,1714818632248,-247.55,0.00011974,2]
[325396629,1714818632258,-289.59,0.00012006,2]
[325396630,1714818632267,-165.76,0.00012028,2]
[325396631,1714818632276,-250.0,0.00012028,2]
[325396632,1714818632286,-731.91,0.00012034,2]
[325396633,1714818632296,-250.9,0.00012047,2]
[325396634,1714818632307,-600.0,0.00012052,2]
[325396635,1714818632317,-165.17,0.00012269,2]
[325396636,1714818632326,-499.99,0.00012269,2]
[325396637,1714818632336,-400.0,0.00012403,2]
[325396638,1714818632350,-156.79019655,0.00012424,2]
[325396639,1714818632359,-190.61,0.00012524,2]
[325396640,1714818632368,-3498.38014246,0.00012668,2]
[325396641,1714818632377,-1560.64174384,0.00012795,2]
[325396642,1714818632386,-3000.0,0.0001287,2]
[325396643,1714818632396,-200.0,0.00012896,2]
[325396644,1714818632405,-400.0,0.00012896,2]
[325396645,1714818632415,-500.0,0.00012896,2]
[325396646,1714818632424,-10000.0,0.000129,2]
[325396647,1714818632434,-1373.1923,0.000129,2]
[325396648,1714818632444,-9079.7969725,0.000129,2]
[325396649,1714818632455,-2951.74030592,0.000129,2]
[325396650,1714818632464,-220.78669728,0.000129,2]
[325396651,1714818632473,-279.93262622,0.000129,2]
[325396653,1714818632483,-1067.4230523,0.00012988,2]
[325396655,1714818632492,-4234.0616961,0.00012988,2]
[325396657,1714818632502,-1595.8188012,0.00012988,2]
[325396659,1714818632511,-9112.9334461,0.00012988,2]
[325396661,1714818632521,-389.3793236,0.00012988,2]
[325396663,1714818632531,-893.5776284,0.00012991,2]
[325396665,1714818632540,-3544.4829499,0.00012991,2]
[325396667,1714818632549,-1335.9164174,0.00012991,2]
[325396669,1714818632558,-7628.7592249,0.00012991,2]
[325396671,1714818632568,-389.3793236,0.00012991,2]
[325396673,1714818632578,-328.87868284,0.00012997,2]
[325396675,1714818632588,-787.42007613,0.00012997,2]
[325396678,1714818632602,-155.23723071,0.00012997,2]
[325396680,1714818632611,-430.13863617,0.00012997,2]
[325396682,1714818632620,-1777.47765708,0.00012997,2]
[325396684,1714818632630,-642.44790937,0.00012997,2]
[325396685,1714818632639,-488.27247968,0.00012997,2]
[325396686,1714818632648,-2361.19966667,0.00012997,2]
[325396687,1714818632658,-378.55302322,0.00012997,2]
[325396688,1714818632668,-706.86968625,0.00012997,2]
[325396689,1714818632677,-155.0,0.00012997,2]
[325396690,1714818632686,-433.89144724,0.00012997,2]
[325396691,1714818632696,-156.34146276,0.00012997,2]
[325396692,1714818632705,-3416.40206699,0.00012997,2]
[325396693,1714818632715,-9079.65174137,0.00012997,2]
[325396694,1714818632724,-157.1312396,0.00012997,2]
[325396695,1714818632734,-233.11387145,0.00012997,2]
[325396696,1714818632743,-1039.86233473,0.00012997,2]
[325396697,1714818632753,-329.53898838,0.00012997,2]
[325396698,1714818632762,-1995.45059032,0.00012998,2]
[325396699,1714818632772,-155.57360516,0.00012998,2]
[325396701,1714818632782,-156.0475967,0.00012998,2]
[325396703,1714818632791,-157.35922135,0.00012998,2]
[325396705,1714818632800,-27335.04312106,0.00012999,2]
[325396707,1714818632810,-150.01,0.00012999,2]
[325396709,1714818632819,-615.0,0.00013,2]
[325396711,1714818632828,-142624.19423654,0.00013,2]
[325396715,1714818632859,-753.66321503,0.00013,2]
[325396717,1714818632870,-1616.31417857,0.00013,2]
[325396719,1714818632882,-7769.60922863,0.00013,2]
[325396722,1714818632894,-411.26103104,0.00013,2]
[325396733,1714818633147,-472.04,0.00013,2]
[325396734,1714818633230,-833.50211302,0.00013,2]
[325396735,1714818633242,-539.69020108,0.00013,2]
[325396736,1714818633253,-969.45652537,0.00013,2]
[325396737,1714818633266,-3367.93087916,0.00013,2]
[325396738,1714818633278,-1169.32315803,0.00013,2]
[325396743,1714818637856,-300.02,0.00012999,2]
[325396746,1714818637865,-1389.980001,0.00013,2]
[325396749,1714818637878,-1306.14903882,0.00013,2]
[325396751,1714818637926,-1511.30272506,0.00013,2]
[325396752,1714818638001,-396.96657,0.00013,2]
[325396753,1714818638013,-53522.356669,0.00013,2]
[325396754,1714818638203,-80623.22158228,0.00013,2]
[325396755,1714818640066,-24531.84551595,0.00013,2]
[325396756,1714818640077,-2855.00344056,0.00013,2]
[325396757,1714818640212,-425.6559996,0.00013,2]
[325396758,1714818640223,-87563.8222366,0.00013,2]
[325396759,1714818640236,-292.63726104,0.00013,2]
[325396760,1714818640247,-634.72499997,0.00013,2]
[325396766,1714818642996,-614.89069,0.00013,2]
[325396767,1714818643193,-216.99723947,0.00012999,2]
[325396768,1714818643203,-66.94271613,0.00013,2]
[325396769,1714818643214,-338.72698102,0.00013,2]
[325396770,1714818643262,-1222.471622,0.00013,2]
[325396771,1714818643273,-376.69655341,0.00013,2]
[325396772,1714818643285,-427.4126568,0.00013,2]
[325396776,1714818645882,-8355.86248075,0.00012999,2]
[325396777,1714818645891,-14250.95735436,0.00013,2]
[325396778,1714818645965,-306.8462,0.00013,2]
[325396779,1714818645977,-248.1538,0.00013,2]
[325396780,1714818645988,-750.86921719,0.00013,2]
[325396781,1714818646057,-982.45050727,0.00013,2]
[325396782,1714818646069,-462.1772013,0.00013,2]
[325396783,1714818646080,-470.2872715,0.00013,2]
[325396784,1714818646151,-5570.45453968,0.00013,2]
[325396785,1714818646163,-425.40599832,0.00013,2]
[325396786,1714818646174,-647.51337949,0.00013,2]
[325396958,1714819358662,158.62979297,0.00012997,30]
[325396985,1714819832080,-498.34120956,0.0001187,2]
[325396986,1714819832090,-216.99723947,0.0001187,2]
[325396987,1714819832100,-521.73158779,0.00011871,2]
[325396988,1714819832109,-8355.86248075,0.00011879,2]
[325396989,1714819832119,-2893.73587804,0.0001188,2]
[325396991,1714819832191,-5115.06412196,0.0001188,2]
[325396992,1714819832200,-1147.51,0.0001188,2]
[325396993,1714819832209,-618.37,0.0001201,2]
[325396994,1714819832219,-1500.0,0.00012032,2]
[325396995,1714819832228,-250.0,0.00012041,2]
[325396996,1714819832242,-520.0,0.00012068,2]
[325396997,1714819832257,-480.0,0.00012135,2]
[325396998,1714819832266,-253.95,0.00012309,2]
[325396999,1714819832277,-182.41,0.0001239,2]
[325397000,1714819832286,-3498.38014246,0.00012622,2]
[325397001,1714819832295,-1353.59659339,0.00012819,2]
[325397002,1714819832307,-207.04515045,0.00012819,2]
[325397003,1714819832317,-604.01154568,0.00012866,2]
[325397004,1714819832329,-2062.87467432,0.00012866,2]
[325397005,1714819832339,-251.91007333,0.00012868,2]
[325397006,1714819832349,-200.0,0.00012896,2]
[325397007,1714819832359,-1000.0,0.00012896,2]
[325397008,1714819832367,-500.0,0.00012896,2]
[325397009,1714819832377,-150.0,0.00012897,2]
[325397010,1714819832386,-336.4976,0.000129,2]
[325397011,1714819832395,-1114.31245167,0.000129,2]
[325397012,1714819832408,-7752.43694795,0.000129,2]
[325397013,1714819832418,-216.12482262,0.000129,2]
[325397014,1714819832427,-368.64187743,0.000129,2]
[325397015,1714819832436,-329.87442224,0.000129,2]
[325397016,1714819832445,-3448.95226355,0.00012979,2]
[325397017,1714819832455,-334.058691,0.00012987,2]
[325397018,1714819832464,-1415.8915973,0.00012989,2]
[325397019,1714819832473,-859.3761034,0.00012989,2]
[325397020,1714819832483,-3047.4109304,0.00012989,2]
[325397021,1714819832492,-314.9761681,0.00012991,2]
[325397022,1714819832502,-1335.0112475,0.00012991,2]
[325397023,1714819832511,-810.2857352,0.00012991,2]
[325397024,1714819832521,-2873.3328708,0.00012991,2]
[325397025,1714819832530,-74679.12670287,0.00012997,2]
[325397026,1714819832540,-29677.21332211,0.00012998,2]
[325397027,1714819832571,-756.27288357,0.00012998,2]
[325397028,1714819832652,-341.41237669,0.00012998,2]
[325397029,1714819832665,-299.86621506,0.00012998,2]
[325397030,1714819832676,-1280.0,0.00012998,2]
[325397031,1714819832688,-1595.0,0.00012998,2]
[325397106,1714819838114,-32047.5155,0.00012998,2]
[325397108,1714819838126,-270.57824391,0.00012998,2]
[325397114,1714819838185,-6267.14369324,0.00012998,2]
[325397115,1714819838196,-5355.9249,0.00012998,2]
[325397116,1714819838277,-278.14382276,0.00012998,2]
[325397117,1714819838290,-920.92904266,0.00012998,2]
[325397118,1714819838300,-208.08188075,0.00012999,2]
[325397119,1714819838310,-3627.26940959,0.00012999,2]
[325397120,1714819838324,-1305.65954273,0.00012999,2]
[325397121,1714819838334,-197.70284277,0.00012999,3]
[325397122,1714819838343,-79119.85919678,0.00013,2]
[325397123,1714819838360,-9402.13629999,0.00013,2]
[325397124,1714819838372,-3429.54974447,0.00013,2]
[325397125,1714819838439,-191931.48148394,0.00013,2]
[325397147,1714819842540,-2078.96871985,0.00012898,2]
[325397149,1714819842553,-6143.75419523,0.00012898,2]
[325397152,1714819842566,-34254.57558492,0.00012898,2]
[325397153,1714819842575,-8670.31683391,0.00013,2]
[325397169,1714819842766,-313.7970489,0.00012989,2]
[325397171,1714819842775,-785.57116835,0.00013,2]
[325397173,1714819842787,-861.35609527,0.00013,2]
[325397175,1714819842798,-2234.51266791,0.00013,2]
[325397185,1714819842867,-4115.04088728,0.00013,2]
[325397187,1714819842879,-7085.07052209,0.00013,2]
[325397189,1714819842890,-14273.39454777,0.00013,2]
[325397195,1714819842970,-295.8719372,0.00012991,2]
[325397197,1714819842979,-86.5528858,0.00013,2]
[325397240,1714819843336,-3087.78622957,0.00013,2]
[325397266,1714819843538,-3085.85,0.00013,2]
[325397276,1714819843618,-21013.36245197,0.00013,2]
[325397278,1714819843630,-621.91316261,0.00013,2]
[325397281,1714819843644,-41011.95198,0.00013,2]
[325397391,1714819847814,-8355.86248075,0.00012999,2]
[325397392,1714819847824,-2892.85698158,0.00012999,2]
[325397393,1714819847836,-61096.1430184,0.00012999,2]
[325397394,1714819847845,-216.99723947,0.00012999,2]
[325397395,1714819847854,-498.34120956,0.00012999,2]
[325397396,1714819847863,-65469.81260645,0.00013,2]
[325397397,1714819847896,-2120.18465599,0.00013,2]
[325397398,1714819847907,-14057.36603199,0.00013,2]
[325397399,1714819847980,-4146.64955006,0.00013,2]
[325397421,1714820210916,1965.966637,0.00011652,2]
[325397425,1714820444266,-8355.86248075,0.00011705,2]
[325397426,1714820444287,-216.99723947,0.00011705,2]
[325397427,1714820444309,-521.73158779,0.00011705,2]
[325397428,1714820490208,5015.4383,0.00011608,2]
[325397429,1714820492078,600.20985678,0.00011538,2]
[325397430,1714820548423,874.9438,0.00011606,2]
[325397431,1714820564326,1061.94923848,0.00011701,2]
[325397432,1714820582392,150.0,0.00010993,2]
[325397433,1714820583127,150.0,0.00010993,2]
[325397434,1714820589151,155.0,0.00011701,2]
[325397435,1714820670161,250.0,0.00011673,2]
[325397436,1714820687567,14060.82,0.00011672,2]
[325397437,1714820703119,521.73158779,0.00011701,2]
[325397438,1714820704455,1101.92570925,0.00011701,2]
[325397439,1714820726110,498.34120956,0.00011701,2]
[325397440,1714820787945,150.0,0.00011688,2]
[325397441,1714820827806,416.0,0.00011629,2]
[325397442,1714820852707,924.15,0.00011622,2]
[325397443,1714820861665,155.0,0.00011701,2]
[325397445,1714820933786,498.34120956,0.00011701,2]
[325397446,1714820953766,521.73158779,0.00011701,2]
[325397484,1714821033183,-216.99723947,0.00011703,2]
[325397486,1714821033193,-150.0,0.00011704,2]
[325397487,1714821033203,-8355.86248075,0.00011705,2]
[325397488,1714821033214,-3109.40275804,0.00011706,2]
[325397489,1714821033223,-741.22992147,0.00011711,2]
[325397490,1714821033232,-250.0,0.00011761,2]
[325397491,1714821033242,-320.39,0.00011767,2]
[325397492,1714821033253,-966.15,0.0001182,2]
[325397493,1714821033262,-1136.33,0.00011875,2]
[325397494,1714821033271,-8618.29,0.00011897,2]
[325397495,1714821033281,-1500.0,0.0001193,2]
[325397496,1714821033291,-584.0,0.00011954,2]
[325397497,1714821033300,-521.73158779,0.00012097,2]
[325397498,1714821033309,-498.34120956,0.00012098,2]
[325397499,1714821033319,-199.02,0.00012099,2]
[325397500,1714821033329,-1560.64174384,0.00012616,2]
[325397501,1714821033338,-2964.87305908,0.00012847,2]
[325397502,1714821033351,-429.12799901,0.00012847,2]
[325397503,1714821033362,-104.37908437,0.00012847,2]
[325397504,1714821033371,-210.0,0.00012874,2]
[325397505,1714821033381,-766.31101935,0.00012895,2]
[325397506,1714821033392,-233.68898065,0.00012895,2]
[325397507,1714821033402,-151.68501935,0.00012895,2]
[325397508,1714821033414,-348.31498065,0.00012895,2]
[325397509,1714821033424,-200.0,0.00012896,2]
[325397510,1714821033434,-1000.0,0.00012896,2]
[325397511,1714821033443,-500.0,0.00012896,2]
[325397512,1714821033453,-155.0,0.00012898,2]
[325397513,1714821033462,-629.51,0.00012898,2]
[325397514,1714821033472,-155.17435789,0.00012898,2]
[325397515,1714821033481,-155.19116585,0.00012898,2]
[325397516,1714821033491,-2223.61801677,0.00012898,2]
[325397517,1714821033502,-191.11646278,0.00012898,2]
[325397518,1714821033512,-1061.17426456,0.00012898,2]
[325397519,1714821033522,-160.00483055,0.00012898,2]
[325397520,1714821033532,-22425.7436,0.00012898,2]
[325397521,1714821033541,-609.9044,0.000129,2]
[325397522,1714821033550,-38237.492,0.000129,2]
[325397523,1714821033559,-3305.67055756,0.000129,2]
[325397524,1714821033568,-3399.597,0.000129,2]
[325397525,1714821033578,-9051.99840324,0.000129,2]
[325397526,1714821033587,-245.76125162,0.000129,2]
[325397527,1714821033596,-748.4968633,0.00012989,2]
[325397528,1714821033605,-783.9089982,0.00012989,2]
[325397529,1714821033615,-422.5687591,0.00012989,2]
[325397530,1714821033628,-227.5425757,0.00012989,2]
[325397531,1714821033637,-6090.6566431,0.00012989,2]
[325397532,1714821033647,-481.3238091,0.00012989,2]
[325397533,1714821033656,-961.5916909,0.00012991,2]
[325397534,1714821033667,-1007.0855552,0.00012991,2]
[325397535,1714821033676,-459.1208026,0.00012991,2]
[325397536,1714821033685,-250.2968333,0.00012991,2]
[325397537,1714821033696,-6786.6421952,0.00012991,2]
[325397538,1714821033705,-539.0926782,0.00012991,2]
[325397539,1714821033714,-1777.47765708,0.00012998,2]
[325397540,1714821033723,-193.07568298,0.00012999,2]
[325397541,1714821033732,-351.2829076,0.00012999,2]
[325397542,1714821033742,-42434.78016535,0.00012999,2]
[325397543,1714821033752,-197.70284277,0.00012999,3]
[325397544,1714821033761,-397.16117121,0.00013,2]
[325397545,1714821033770,-1000.0,0.00013,2]
[325397546,1714821033779,-1000.0,0.00013,2]
[325397547,1714821033790,-1000.0,0.00013,2]
[325397548,1714821033798,-1000.0,0.00013,2]
[325397549,1714821033807,-1000.0,0.00013,2]
[325397550,1714821033816,-1000.0,0.00013,2]
[325397551,1714821033825,-1000.0,0.00013,2]
[325397552,1714821033835,-1000.0,0.00013,2]
[325397553,1714821033844,-1000.0,0.00013,2]
[325397554,1714821033853,-1000.0,0.00013,2]
[325397555,1714821033862,-1000.0,0.00013,2]
[325397556,1714821033871,-1000.0,0.00013,2]
[325397557,1714821033881,-1000.0,0.00013,2]
[325397558,1714821033890,-1000.0,0.00013,2]
[325397559,1714821033899,-1000.0,0.00013,2]
[325397560,1714821033908,-1000.0,0.00013,2]
[325397561,1714821033917,-1000.0,0.00013,2]
[325397562,1714821033927,-1000.0,0.00013,2]
[325397563,1714821033936,-1000.0,0.00013,2]
[325397564,1714821033946,-1000.0,0.00013,2]
[325397565,1714821033955,-1000.0,0.00013,2]
[325397566,1714821033964,-1000.0,0.00013,2]
[325397567,1714821033973,-1000.0,0.00013,2]
[325397568,1714821033983,-1000.0,0.00013,2]
[325397569,1714821033992,-1000.0,0.00013,2]
[325397570,1714821034081,-1000.0,0.00013,2]
[325397571,1714821034091,-1000.0,0.00013,2]
[325397572,1714821034100,-1000.0,0.00013,2]
[325397573,1714821034109,-1000.0,0.00013,2]
[325397574,1714821034118,-1000.0,0.00013,2]
[325397575,1714821034127,-186.24280344,0.00013,2]
[325397576,1714821034136,-2000.0,0.00013,2]
[325397577,1714821034145,-924.36689829,0.00013,2]
[325397578,1714821034154,-904536.40528793,0.00013,2]
[325397579,1714821034163,-751047.95474872,0.00013,2]
[325397580,1714821034172,-2321.24,0.00013,2]
[325397581,1714821034181,-208102.30856725,0.00013,2]
[325397582,1714821034246,-10219.45385534,0.00013,2]
[325397591,1714821038410,-1488.86329916,0.00013,2]
[325397594,1714821038422,-1369.29431586,0.00013,2]
[325397603,1714821038525,-6454.884,0.00013,2]
[325397604,1714821038537,-46159.80337803,0.00013,2]
[325397605,1714821038652,-385.45632785,0.00013,2]
[325397606,1714821038663,-2819.36204723,0.00013,2]
[325397607,1714821038675,-802.8625,0.00013,2]
[325397608,1714821038687,-2563.85387638,0.00013,2]
[325397609,1714821038895,-481.7175,0.00013,2]
[325397612,1714821038907,-80623.22158228,0.00013,2]
[325397650,1714821042214,-1834.69195921,0.00013,2]
[325397651,1714821042227,-728.05842579,0.00013,2]
[325397652,1714821042240,-861.78488582,0.00013,2]
[325397653,1714821042253,-5668.84083125,0.00013,2]
[325397654,1714821042419,-3046.2,0.00013,2]
[325397655,1714821042431,-25588.96678778,0.00013,2]
[325397656,1714821042443,-9231.07324802,0.00013,2]
[325397657,1714821042455,-826.8288892,0.00013,2]
[325397658,1714821042466,-2049.82401678,0.00013,2]
[325397659,1714821042478,-2772.157,0.00013,2]
[325397660,1714821042490,-183914.38223521,0.00013,2]
[325397661,1714821042523,-642.29,0.00013,2]
[325397662,1714821042663,-2868.43341692,0.00013,2]
[325397664,1714821042746,-473.4,0.00013,2]
[325397666,1714821042761,-995.22356,0.00013,2]
[325397668,1714821042774,-716.8839695,0.00013,2]
[325397670,1714821042785,-3569.82233174,0.00013,2]
[325397672,1714821042797,-1602.29277342,0.00013,2]
[325397674,1714821042808,-14172.26475,0.00013,2]
[325397676,1714821042820,-538.03615002,0.00013,2]
[325397678,1714821042836,-3154.2594,0.00013,2]
[325397680,1714821042848,-3585.54167568,0.00013,2]
[325397821,1714821044142,-1308.97457036,0.00013,2]
[325397822,1714821044153,-1176.64081656,0.00013,2]
[325397823,1714821044164,-435.11976449,0.00013,2]
[325397824,1714821044175,-13485.92702241,0.00013,2]
[325397825,1714821044186,-10523.92625,0.00013,2]
[325397826,1714821044197,-1605.725,0.00013,2]
[325397827,1714821044208,-1941.55376906,0.00013,2]
[325397828,1714821044219,-1612.9695,0.00013,2]
[325397834,1714821047537,-873.88559492,0.00012999,2]
[325397835,1714821047549,-312.14085402,0.00012999,2]
[325397836,1714821047561,-348.70348558,0.00012999,2]
[325397837,1714821047570,-185.456726,0.00013,2]
[325397838,1714821047582,-2660.56650249,0.00013,2]
[325397839,1714821047592,-710.58000714,0.00013,2]
[325397840,1714821047609,-4265.17455051,0.00013,2]
[325397841,1714821047620,-804.28517556,0.00013,2]
[325397842,1714821047631,-524.30266506,0.00013,2]
[325397843,1714821047644,-1468.0,0.00013,2]
[325397844,1714821047656,-821.7465487,0.00013,2]
[325397845,1714821047667,-896.01,0.00013,2]
[325397846,1714821047678,-737.51933105,0.00013,2]
[325397847,1714821047691,-1925.16,0.00013,2]
[325397848,1714821047714,-3054.89154427,0.00013,2]
[325397849,1714821047725,-1222.58964128,0.00013,2]
[325397850,1714821047737,-530.45176955,0.00013,2]
[325397851,1714821047748,-4416.15,0.00013,2]
[325397852,1714821048219,-644.63,0.00013,2]
[325397853,1714821048231,-1284.1755862,0.00013,2]
[325397854,1714821048243,-642.29,0.00013,2]
[325397855,1714821048255,-192832.00000006,0.00013,2]
[325397856,1714821048269,-691.03903521,0.00013,2]
[325397857,1714821072207,156.44395777,0.00011698,2]
[325397858,1714821078924,284.97781106,0.00011697,2]
[325397860,1714821085136,902.89323538,0.00011697,2]
[325397862,1714821123607,301.79313272,0.000117,2]
[325397863,1714821125770,150.0,0.00010993,2]
[325397864,1714821146403,408.97723606,0.000117,2]
[325397865,1714821168405,195.00346878,0.000117,2]
[325397869,1714821249606,498.34120956,0.000117,2]
[325397870,1714821249877,521.73158779,0.000117,2]
[325397871,1714821253533,216.99723947,0.000117,2]
[325397872,1714821269368,-21425.77307838,0.00011701,2]
[325397873,1714821279258,269.3156,0.00011601,2]
[325397907,1714821817137,332.8,0.00011646,2]
[325397914,1714822046634,1500.0,0.00011397,2]
[325397919,1714822178098,250.0,0.00011351,2]
[325397922,1714822200058,215.25609145,0.00010257,2]
[325397945,1714822232559,-521.73158779,0.00011708,2]
[325397946,1714822232569,-498.34120956,0.00011709,2]
[325397947,1714822232583,-126.11927495,0.0001171,2]
[325397948,1714822232596,-90.87796452,0.0001171,2]
[325397949,1714822232605,-535.02614423,0.0001172,2]
[325397950,1714822232614,-369.57,0.00011747,2]
[325397951,1714822232623,-171.26,0.00011809,2]
[325397952,1714822232632,-161.7,0.00011821,2]
[325397953,1714822232642,-161.7,0.00011877,2]
[325397954,1714822232651,-161.7,0.00011933,2]
[325397955,1714822232660,-161.7,0.00011989,2]